fUSD/lending_fUSD_20240327
["ID","MTS","AMOUNT","RATE_DAILY","PERIOD"]
[320727587,1711539057266,-150.0,0.00054884,14]
[320727588,1711539057276,-223.0,0.0005489,75]
[320727589,1711539057285,-150.0,0.0005489,14]
[320727590,1711539057296,-173.032719,0.00054898,100]
[320727591,1711539057305,-4821.24114706,0.000549,120]
[320727592,1711539057315,-392.23186261,0.000549,2]
[320727593,1711539057325,-3007.06984739,0.000549,120]
[320727594,1711539057334,-1500.0,0.00054901,14]
[320727595,1711539057343,-636.50981946,0.00054929,60]
[320727596,1711539057352,-150.0,0.00054936,14]
[320727597,1711539057361,-150.0,0.00054947,14]
[320727598,1711539057371,-150.0,0.00054953,14]
[320727599,1711539057381,-300.0,0.00054961,14]
[320727600,1711539057390,-150.0,0.00054963,14]
[320727601,1711539057399,-155.94263344,0.00054968,58]
[320727602,1711539057409,-2504.91271197,0.00054968,2]
[320727603,1711539057418,-150.0,0.00054986,14]
[320727604,1711539057429,-177.8,0.0005499,15]
[320727605,1711539057438,-150.0,0.00054998,14]
[320727606,1711539057448,-500.0,0.00055,7]
[320727607,1711539057458,-501.29,0.00055,7]
[320727608,1711539057467,-500.0,0.00055,7]
[320727609,1711539057477,-500.0,0.00055,7]
[320727610,1711539057486,-500.0,0.00055,7]
[320727611,1711539057496,-500.0,0.00055,7]
[320727612,1711539057507,-500.0,0.00055,7]
[320727613,1711539057516,-500.0,0.00055,7]
[320727614,1711539057526,-500.0,0.00055,7]
[320727615,1711539057536,-500.0,0.00055,7]
[320727616,1711539057546,-500.0,0.00055,7]
[320727617,1711539057555,-500.0,0.00055,7]
[320727618,1711539057565,-500.0,0.00055,7]
[320727619,1711539057575,-500.0,0.00055,7]
[320727620,1711539057584,-500.0,0.00055,7]
[320727621,1711539057594,-500.0,0.00055,7]
[320727622,1711539057604,-500.0,0.00055,7]
[320727623,1711539057612,-500.0,0.00055,7]
[320727624,1711539057622,-500.0,0.00055,7]
[320727625,1711539057632,-500.0,0.00055,7]
[320727626,1711539057641,-500.0,0.00055,7]
[320727627,1711539057651,-500.0,0.00055,7]
[320727628,1711539057661,-500.0,0.00055,7]
[320727629,1711539057671,-500.0,0.00055,7]
[320727630,1711539057681,-500.0,0.00055,7]
[320727631,1711539057690,-500.0,0.00055,7]
[320727632,1711539057699,-500.0,0.00055,7]
[320727633,1711539057709,-500.0,0.00055,7]
[320727634,1711539057719,-500.0,0.00055,7]
[320727635,1711539057728,-500.0,0.00055,7]
[320727636,1711539057738,-500.0,0.00055,7]
[320727637,1711539057748,-500.0,0.00055,7]
[320727638,1711539057757,-500.0,0.00055,7]
[320727639,1711539057766,-500.0,0.00055,7]
[320727640,1711539057776,-500.0,0.00055,7]
[320727641,1711539057785,-500.0,0.00055,7]
[320727642,1711539057794,-500.0,0.00055,7]
[320727643,1711539057805,-500.0,0.00055,7]
[320727644,1711539057814,-496.69,0.00055,7]
[320727645,1711539057824,-500.0,0.00055,7]
[320727646,1711539057833,-500.0,0.00055,7]
[320727647,1711539057843,-500.0,0.00055,7]
[320727648,1711539057853,-500.0,0.00055,7]
[320727649,1711539057862,-500.0,0.00055,7]
[320727650,1711539057871,-4567.50526957,0.00055,120]
[320727651,1711539057880,-1999.999999,0.00055,5]
[320727652,1711539057890,-12031.57638013,0.00055,30]
[320727653,1711539057899,-77058.403051,0.00055,30]
[320727654,1711539057909,-3600.0,0.00055,120]
[320727655,1711539057919,-105956.24333026,0.00055,30]
[320727656,1711539057929,-34306.88968509,0.00055,30]
[320727657,1711539057938,-15833.29561769,0.00055,14]
[320727658,1711539057948,-410.0,0.00055,120]
[320727659,1711539057957,-8149.06608272,0.00055,2]
[320727660,1711539057970,-3166.0,0.00055,120]
[320727661,1711539057980,-49659.25616736,0.00055,30]
[320727662,1711539057989,-2005.83232822,0.00055,120]
[320727663,1711539057999,-211272.16265562,0.00055,30]
[320727664,1711539058009,-2343.13530962,0.00055,120]
[320727665,1711539058018,-500.0,0.00055,7]
[320727666,1711539058027,-500.0,0.00055,7]
[320727667,1711539058037,-500.0,0.00055,7]
[320727668,1711539058046,-500.0,0.00055,7]
[320727669,1711539058196,-500.0,0.00055,7]
[320727670,1711539058216,-1500.0,0.00055,120]
[320727671,1711539058226,-950.0,0.00055,3]
[320727672,1711539058236,-479.0,0.00055,44]
[320727673,1711539058249,-472.0,0.00055,34]
[320727674,1711539058259,-151.0,0.00055,7]
[320727675,1711539058268,-151.0,0.00055,120]
[320727676,1711539058278,-151.0,0.00055,120]
[320727677,1711539058288,-151.0,0.00055,120]
[320727678,1711539058297,-151.0,0.00055,14]
[320727679,1711539058307,-151.0,0.00055,120]
[320727680,1711539058317,-151.0,0.00055,120]
[320727681,1711539058327,-151.0,0.00055,30]
[320727682,1711539058337,-151.0,0.00055,120]
[320727683,1711539058346,-151.0,0.00055,120]
[320727684,1711539058356,-151.0,0.00055,120]
[320727685,1711539058365,-151.0,0.00055,120]
[320727686,1711539058375,-151.0,0.00055,120]
[320727687,1711539058384,-151.0,0.00055,120]
[320727688,1711539058394,-151.0,0.00055,120]
[320727689,1711539058405,-150.0,0.00055,22]
[320727690,1711539058414,-150.0,0.00055,22]
[320727691,1711539058424,-350.0,0.00055,55]
[320727692,1711539058435,-5000.0,0.00055,120]
[320727693,1711539058445,-44273.082,0.00055,120]
[320727694,1711539058454,-150.0,0.00055001,14]
[320727695,1711539058464,-150.0,0.0005501,14]
[320727696,1711539058474,-150.0,0.00055031,14]
[320727697,1711539058483,-10985.84684853,0.00055036,32]
[320727698,1711539058493,-507.0,0.00055041,120]
[320727699,1711539058502,-150.0,0.00055047,14]
[320727700,1711539058511,-173.032719,0.00055048,108]
[320727701,1711539058521,-300.0,0.0005505,14]
[320727702,1711539058530,-1500.0,0.00055057,14]
[320727703,1711539058540,-151.0,0.0005506,120]
[320727704,1711539058549,-151.0,0.0005506,120]
[320727705,1711539058559,-151.0,0.0005506,120]
[320727706,1711539058569,-151.0,0.0005506,120]
[320727707,1711539058578,-151.0,0.0005506,120]
[320727708,1711539058588,-151.0,0.0005506,120]
[320727709,1711539058597,-500.0,0.0005506,60]
[320727710,1711539058607,-500.0,0.0005506,60]
[320727711,1711539058616,-151.0,0.0005506,120]
[320727712,1711539058626,-1348.3991426,0.0005506,2]
[320727713,1711539058636,-79365.4704238,0.0005506,2]
[320727714,1711539058646,-5410.1993837,0.0005506,2]
[320727715,1711539058655,-22329.5816195,0.0005506,2]
[320727716,1711539058665,-13291.8872572,0.0005506,2]
[320727717,1711539058674,-221.1132656,0.0005506,2]
[320727718,1711539058684,-562.47397844,0.00055067,120]
[320727719,1711539058694,-8382.10657703,0.00055067,120]
[320727720,1711539058703,-151.0,0.00055067,120]
[320727721,1711539058713,-498.13815586,0.00055068,120]
[320727722,1711539058722,-1181.20468984,0.00055068,120]
[320727723,1711539058731,-895.23,0.00055068,120]
[320727724,1711539058740,-575.28,0.00055068,120]
[320727725,1711539058750,-500.0,0.00055068,120]
[320727726,1711539058760,-500.0,0.00055068,120]
[320727727,1711539058769,-500.0,0.00055068,120]
[320727728,1711539058778,-500.0,0.00055068,120]
[320727729,1711539058788,-500.0,0.00055068,120]
[320727730,1711539058797,-500.0,0.00055068,120]
[320727731,1711539058807,-500.0,0.00055068,120]
[320727732,1711539058818,-507.16082916,0.00055068,120]
[320727733,1711539058828,-500.0,0.00055068,120]
[320727734,1711539058837,-500.0,0.00055068,120]
[320727735,1711539058847,-500.0,0.00055068,120]
[320727736,1711539058858,-563.96,0.00055068,120]
[320727737,1711539058867,-500.0,0.00055068,120]
[320727738,1711539058877,-500.0,0.00055068,120]
[320727739,1711539058888,-500.0,0.00055068,120]
[320727740,1711539058898,-500.0,0.00055068,120]
[320727741,1711539058910,-500.0,0.00055068,120]
[320727742,1711539058920,-500.0,0.00055068,120]
[320727743,1711539058930,-500.0,0.00055068,120]
[320727744,1711539058941,-500.0,0.00055068,120]
[320727745,1711539058950,-500.0,0.00055068,120]
[320727746,1711539058959,-500.0,0.00055068,120]
[320727747,1711539058968,-500.0,0.00055068,120]
[320727748,1711539058977,-500.0,0.00055068,120]
[320727749,1711539058986,-500.0,0.00055068,120]
[320727750,1711539058996,-500.0,0.00055068,120]
[320727751,1711539059005,-500.0,0.00055068,120]
[320727752,1711539059014,-500.0,0.00055068,120]
[320727753,1711539059023,-500.0,0.00055068,120]
[320727754,1711539059033,-500.0,0.00055068,120]
[320727755,1711539059043,-500.0,0.00055068,120]
[320727756,1711539059052,-500.0,0.00055068,120]
[320727757,1711539059061,-500.0,0.00055068,120]
[320727758,1711539059071,-500.0,0.00055068,120]
[320727759,1711539059080,-500.0,0.00055068,120]
[320727760,1711539059090,-500.0,0.00055068,120]
[320727761,1711539059099,-151.0,0.00055068,120]
[320727762,1711539059108,-976.2,0.00055068,120]
[320727763,1711539059118,-500.0,0.00055068,120]
[320727764,1711539059127,-500.0,0.00055068,120]
[320727765,1711539059137,-500.0,0.00055068,120]
[320727766,1711539059147,-500.0,0.00055068,120]
[320727767,1711539059157,-500.0,0.00055068,120]
[320727768,1711539059166,-531.34,0.00055068,120]
[320727769,1711539059176,-500.0,0.00055068,120]
[320727770,1711539059187,-454.32742962,0.00055068,120]
[320727771,1711539059197,-500.0,0.00055068,120]
[320727772,1711539059208,-500.0,0.00055068,120]
[320727773,1711539059218,-575.24,0.00055068,120]
[320727774,1711539059227,-500.0,0.00055068,120]
[320727775,1711539059236,-500.0,0.00055068,120]
[320727776,1711539059245,-500.0,0.00055068,120]
[320727777,1711539059257,-500.0,0.00055068,120]
[320727778,1711539059266,-500.0,0.00055068,120]
[320727779,1711539059277,-503.38,0.00055068,120]
[320727780,1711539059288,-500.0,0.00055068,120]
[320727781,1711539059299,-544.36,0.00055068,120]
[320727782,1711539059308,-656.62,0.00055068,120]
[320727783,1711539059317,-500.0,0.00055068,120]
[320727784,1711539059328,-1108.32,0.00055068,120]
[320727785,1711539059337,-786.05,0.00055068,120]
[320727786,1711539059347,-500.0,0.00055068,120]
[320727787,1711539059356,-500.0,0.00055068,120]
[320727788,1711539059365,-500.0,0.00055068,120]
[320727789,1711539059375,-500.0,0.00055068,120]
[320727790,1711539059384,-500.0,0.00055068,120]
[320727791,1711539059394,-500.0,0.00055068,120]
[320727792,1711539059403,-500.0,0.00055068,120]
[320727793,1711539059413,-500.0,0.00055068,120]
[320727794,1711539059423,-582.28,0.00055068,120]
[320727795,1711539059434,-500.0,0.00055068,120]
[320727796,1711539059443,-500.0,0.00055068,120]
[320727797,1711539059453,-500.0,0.00055068,120]
[320727798,1711539059464,-500.0,0.00055068,120]
[320727799,1711539059474,-500.0,0.00055068,120]
[320727800,1711539059483,-500.0,0.00055068,120]
[320727801,1711539059492,-642.92,0.00055068,120]
[320727802,1711539059502,-888.0,0.00055068,120]
[320727803,1711539059512,-500.0,0.00055068,120]
[320727804,1711539059521,-500.0,0.00055068,120]
[320727805,1711539059531,-500.0,0.00055068,120]
[320727806,1711539059539,-500.0,0.00055068,120]
[320727807,1711539059548,-500.0,0.00055068,120]
[320727808,1711539059559,-500.0,0.00055068,120]
[320727809,1711539059568,-500.0,0.00055068,120]
[320727810,1711539059577,-500.0,0.00055068,120]
[320727811,1711539059587,-500.0,0.00055068,120]
[320727812,1711539059596,-500.0,0.00055068,120]
[320727813,1711539059606,-500.0,0.00055068,120]
[320727814,1711539059615,-500.0,0.00055068,120]
[320727815,1711539059624,-500.0,0.00055068,120]
[320727816,1711539059634,-500.0,0.00055068,120]
[320727817,1711539059643,-500.0,0.00055068,120]
[320727818,1711539059652,-500.0,0.00055068,120]
[320727819,1711539059661,-500.0,0.00055068,120]
[320727820,1711539059670,-500.0,0.00055068,120]
[320727821,1711539059681,-500.0,0.00055068,120]
[320727822,1711539059690,-500.0,0.00055068,120]
[320727823,1711539059699,-500.0,0.00055068,120]
[320727824,1711539059708,-500.0,0.00055068,120]
[320727825,1711539059718,-500.0,0.00055068,120]
[320727826,1711539059727,-500.0,0.00055068,120]
[320727827,1711539059736,-500.0,0.00055068,120]
[320727828,1711539059746,-500.0,0.00055068,120]
[320727829,1711539059755,-1000.0,0.00055068,120]
[320727830,1711539059764,-500.0,0.00055068,120]
[320727831,1711539059774,-500.0,0.00055068,120]
[320727832,1711539059783,-500.0,0.00055068,120]
[320727833,1711539059793,-500.0,0.00055068,120]
[320727834,1711539059802,-650.65,0.00055068,120]
[320727835,1711539059812,-508.81631819,0.00055068,120]
[320727836,1711539059821,-500.0,0.00055068,120]
[320727837,1711539059831,-500.0,0.00055068,120]
[320727838,1711539059841,-500.0,0.00055068,120]
[320727839,1711539059850,-500.0,0.00055068,120]
[320727840,1711539059859,-500.0,0.00055068,120]
[320727841,1711539059868,-666.49,0.00055068,120]
[320727842,1711539059878,-500.0,0.00055068,120]
[320727843,1711539059887,-512.61,0.00055068,120]
[320727844,1711539059896,-500.0,0.00055068,120]
[320727845,1711539059907,-506.76421852,0.00055068,120]
[320727846,1711539059917,-500.0,0.00055068,120]
[320727847,1711539059926,-500.0,0.00055068,120]
[320727848,1711539059937,-500.0,0.00055068,2]
[320727849,1711539059946,-500.0,0.00055068,120]
[320727850,1711539059956,-500.0,0.00055068,120]
[320727851,1711539059967,-500.0,0.00055068,120]
[320727852,1711539059976,-500.0,0.00055068,120]
[320727853,1711539059985,-500.0,0.00055068,120]
[320727854,1711539059994,-500.0,0.00055068,120]
[320727855,1711539060003,-610.66,0.00055068,120]
[320727856,1711539060013,-544.48,0.00055068,120]
[320727857,1711539060022,-500.0,0.00055068,120]
[320727858,1711539060032,-500.0,0.00055068,120]
[320727859,1711539060041,-1264.52,0.00055068,120]
[320727860,1711539060051,-500.0,0.00055068,120]
[320727861,1711539060060,-500.0,0.00055068,120]
[320727862,1711539060069,-564.14,0.00055068,120]
[320727863,1711539060078,-617.82,0.00055068,120]
[320727864,1711539060088,-500.0,0.00055068,120]
[320727865,1711539060098,-163.06,0.00055068,120]
[320727866,1711539060107,-832.09,0.00055068,120]
[320727867,1711539060116,-921.37,0.00055068,120]
[320727868,1711539060126,-695.47,0.00055068,120]
[320727869,1711539060135,-1458.74,0.00055068,120]
[320727870,1711539060144,-500.0,0.00055068,120]
[320727871,1711539060153,-500.0,0.00055068,120]
[320727872,1711539060162,-1146.87,0.00055068,120]
[320727873,1711539060171,-500.0,0.00055068,120]
[320727874,1711539060181,-597.38,0.00055068,120]
[320727875,1711539060190,-2719.96,0.00055068,120]
[320727876,1711539060199,-500.0,0.00055068,120]
[320727877,1711539060208,-500.0,0.00055068,120]
[320727878,1711539060217,-1170.95,0.00055068,120]
[320727879,1711539060226,-500.0,0.00055068,120]
[320727880,1711539060235,-500.0,0.00055068,120]
[320727881,1711539060244,-500.0,0.00055068,120]
[320727882,1711539060257,-500.0,0.00055068,120]
[320727883,1711539060266,-500.0,0.00055068,120]
[320727884,1711539060275,-1986.6,0.00055068,120]
[320727885,1711539060284,-884.38,0.00055068,120]
[320727886,1711539060294,-1057.95,0.00055068,120]
[320727887,1711539060304,-500.0,0.00055068,120]
[320727888,1711539060314,-616.91,0.00055068,120]
[320727889,1711539060325,-533.04,0.00055068,120]
[320727890,1711539060337,-537.22,0.00055068,120]
[320727891,1711539060348,-702.45,0.00055068,120]
[320727892,1711539060357,-5471.51,0.00055068,120]
[320727893,1711539060367,-587.11,0.00055068,120]
[320727894,1711539060376,-500.0,0.00055068,120]
[320727895,1711539060385,-500.0,0.00055068,120]
[320727896,1711539060395,-500.0,0.00055068,120]
[320727897,1711539060405,-500.0,0.00055068,120]
[320727898,1711539060414,-500.0,0.00055068,120]
[320727899,1711539060425,-2128.3,0.00055068,120]
[320727900,1711539060435,-500.0,0.00055068,120]
[320727901,1711539060444,-500.0,0.00055068,120]
[320727902,1711539060453,-500.0,0.00055068,120]
[320727903,1711539060463,-961.96,0.00055068,120]
[320727904,1711539060472,-792.02,0.00055068,120]
[320727905,1711539060482,-613.31,0.00055068,120]
[320727906,1711539060491,-502.02,0.00055068,120]
[320727907,1711539060501,-1258.8,0.00055068,120]
[320727908,1711539060510,-500.0,0.00055068,120]
[320727909,1711539060520,-931.2,0.00055068,120]
[320727910,1711539060529,-663.5,0.00055068,120]
[320727911,1711539060539,-500.0,0.00055068,120]
[320727912,1711539060549,-1126.29,0.00055068,120]
[320727913,1711539060558,-905.93,0.00055068,120]
[320727914,1711539060568,-596.37,0.00055068,120]
[320727915,1711539060577,-500.0,0.00055068,120]
[320727916,1711539060587,-500.0,0.00055068,120]
[320727917,1711539060596,-500.0,0.00055068,120]
[320727918,1711539060606,-500.0,0.00055068,120]
[320727919,1711539060615,-1145.15,0.00055068,120]
[320727920,1711539060625,-1047.43,0.00055068,120]
[320727921,1711539060634,-500.0,0.00055068,120]
[320727922,1711539060643,-1079.19,0.00055068,120]
[320727923,1711539060652,-500.0,0.00055068,120]
[320727924,1711539060661,-500.0,0.00055068,120]
[320727925,1711539060670,-500.0,0.00055068,120]
[320727926,1711539060679,-500.0,0.00055068,120]
[320727927,1711539060690,-1050.1,0.00055068,120]
[320727928,1711539060700,-500.0,0.00055068,120]
[320727929,1711539060710,-500.0,0.00055068,120]
[320727930,1711539060719,-668.88,0.00055068,120]
[320727931,1711539060729,-500.0,0.00055068,120]
[320727932,1711539060739,-798.22,0.00055068,120]
[320727933,1711539060749,-500.0,0.00055068,120]
[320727934,1711539060759,-500.0,0.00055068,120]
[320727935,1711539060768,-865.88,0.00055068,120]
[320727936,1711539060778,-500.0,0.00055068,120]
[320727937,1711539060788,-500.0,0.00055068,120]
[320727938,1711539060798,-500.0,0.00055068,120]
[320727939,1711539060808,-500.0,0.00055068,120]
[320727940,1711539060818,-500.0,0.00055068,120]
[320727941,1711539060827,-805.48,0.00055068,120]
[320727942,1711539060838,-698.77,0.00055068,120]
[320727943,1711539060847,-895.29,0.00055068,120]
[320727944,1711539060856,-2904.63,0.00055068,120]
[320727945,1711539060866,-187.74128744,0.00055068,120]
[320727946,1711539060876,-500.0,0.00055068,120]
[320727947,1711539060886,-575.0,0.00055068,120]
[320727948,1711539060896,-1059.6,0.00055068,120]
[320727949,1711539060905,-624.76,0.00055068,120]
[320727950,1711539060914,-566.16,0.00055068,120]
[320727951,1711539060925,-500.0,0.00055068,120]
[320727952,1711539060937,-500.0,0.00055068,120]
[320727953,1711539060948,-500.0,0.00055068,120]
[320727954,1711539060957,-596.27,0.00055068,120]
[320727955,1711539060966,-511.44,0.00055068,120]
[320727956,1711539060975,-500.0,0.00055068,120]
[320727957,1711539060984,-670.39,0.00055068,120]
[320727958,1711539060993,-2461.83,0.00055068,120]
[320727959,1711539061137,-500.0,0.00055068,120]
[320727960,1711539061156,-1096.84,0.00055068,120]
[320727961,1711539061166,-730.57,0.00055068,120]
[320727962,1711539061175,-526.24,0.00055068,120]
[320727963,1711539061187,-500.0,0.00055068,120]
[320727964,1711539061196,-813.47,0.00055068,120]
[320727965,1711539061205,-500.0,0.00055068,120]
[320727966,1711539061214,-500.0,0.00055068,120]
[320727967,1711539061223,-500.0,0.00055068,120]
[320727968,1711539061232,-982.22,0.00055068,120]
[320727969,1711539061242,-2323.15,0.00055068,120]
[320727970,1711539061256,-952.22,0.00055068,120]
[320727971,1711539061266,-500.0,0.00055068,120]
[320727972,1711539061276,-1090.65,0.00055068,120]
[320727973,1711539061285,-2118.58,0.00055068,120]
[320727974,1711539061295,-819.74,0.00055068,120]
[320727975,1711539061304,-500.0,0.00055068,120]
[320727976,1711539061313,-500.0,0.00055068,120]
[320727977,1711539061325,-500.0,0.00055068,120]
[320727978,1711539061334,-500.0,0.00055068,120]
[320727979,1711539061343,-500.0,0.00055068,120]
[320727980,1711539061353,-500.0,0.00055068,120]
[320727981,1711539061362,-500.0,0.00055068,120]
[320727982,1711539061371,-500.0,0.00055068,120]
[320727983,1711539061381,-680.58,0.00055068,120]
[320727984,1711539061390,-1006.99,0.00055068,120]
[320727985,1711539061400,-500.0,0.00055068,120]
[320727986,1711539061409,-500.0,0.00055068,120]
[320727987,1711539061419,-151.0,0.00055068,120]
[320727988,1711539061428,-510.78353411,0.00055068,120]
[320727989,1711539061440,-2012.56,0.00055068,120]
[320727990,1711539061449,-500.0,0.00055068,120]
[320727991,1711539061459,-500.0,0.00055068,120]
[320727992,1711539061468,-525.09,0.00055068,120]
[320727993,1711539061480,-500.0,0.00055068,120]
[320727994,1711539061490,-468.92723757,0.00055068,120]
[320727995,1711539061500,-1027.05,0.00055068,120]
[320727996,1711539061509,-775.63,0.00055068,120]
[320727997,1711539061519,-151.0,0.00055068,120]
[320727998,1711539061529,-909.15,0.00055068,120]
[320727999,1711539061538,-669.48,0.00055068,120]
[320728000,1711539061548,-2014.61,0.00055068,120]
[320728001,1711539061557,-500.0,0.00055068,120]
[320728002,1711539061567,-176.231198,0.00055068,120]
[320728003,1711539061577,-151.0,0.00055068,120]
[320728004,1711539061587,-613.39,0.00055068,30]
[320728005,1711539061597,-500.0,0.00055068,120]
[320728006,1711539061606,-500.0,0.00055068,120]
[320728007,1711539061616,-151.0,0.00055068,120]
[320728008,1711539061625,-500.0,0.00055068,120]
[320728009,1711539061635,-670.15,0.00055068,120]
[320728010,1711539061644,-500.0,0.00055068,120]
[320728011,1711539061654,-500.0,0.00055068,120]
[320728012,1711539061663,-151.0,0.00055068,120]
[320728013,1711539061675,-613.0,0.00055068,120]
[320728014,1711539061685,-500.0,0.00055068,120]
[320728015,1711539061695,-500.0,0.00055068,120]
[320728016,1711539061704,-741.01,0.00055068,120]
[320728017,1711539061714,-715.82,0.00055068,120]
[320728018,1711539061724,-500.0,0.00055068,120]
[320728019,1711539061733,-500.0,0.00055068,120]
[320728020,1711539061743,-693.91,0.00055068,120]
[320728021,1711539061752,-500.0,0.00055068,120]
[320728022,1711539061762,-500.0,0.00055068,120]
[320728023,1711539061771,-1436.63,0.00055068,120]
[320728024,1711539061780,-788.63,0.00055068,120]
[320728025,1711539061790,-500.0,0.00055068,120]
[320728026,1711539061799,-852.33,0.00055068,120]
[320728027,1711539061809,-500.0,0.00055068,120]
[320728028,1711539061818,-500.0,0.00055068,120]
[320728029,1711539061827,-500.0,0.00055068,120]
[320728030,1711539061837,-500.0,0.00055068,120]
[320728031,1711539061848,-500.0,0.00055068,120]
[320728032,1711539061857,-500.0,0.00055068,120]
[320728033,1711539061867,-500.0,0.00055068,120]
[320728034,1711539061876,-500.0,0.00055068,120]
[320728035,1711539061886,-500.0,0.00055068,120]
[320728036,1711539061896,-608.04,0.00055068,120]
[320728037,1711539061905,-500.0,0.00055068,120]
[320728038,1711539061917,-500.0,0.00055068,60]
[320728039,1711539061926,-632.68,0.00055068,120]
[320728040,1711539061937,-500.0,0.00055068,120]
[320728041,1711539061946,-500.0,0.00055068,120]
[320728042,1711539061955,-500.0,0.00055068,60]
[320728043,1711539061964,-524.62,0.00055068,120]
[320728044,1711539061973,-620.43,0.00055068,120]
[320728045,1711539061982,-818.9,0.00055068,120]
[320728046,1711539061991,-2063.63,0.00055068,120]
[320728047,1711539062001,-216.14600691,0.00055068,120]
[320728048,1711539062010,-1004.28,0.00055068,120]
[320728049,1711539062020,-2011.71,0.00055068,120]
[320728050,1711539062030,-807.51,0.00055068,120]
[320728051,1711539062039,-500.0,0.00055068,120]
[320728052,1711539062049,-500.0,0.00055068,120]
[320728053,1711539062059,-500.0,0.00055068,120]
[320728054,1711539062069,-496.0574366,0.00055068,120]
[320728055,1711539062078,-500.0,0.00055068,120]
[320728056,1711539062088,-763.33,0.00055068,120]
[320728057,1711539062097,-755.18,0.00055068,120]
[320728058,1711539062106,-487.81,0.00055068,120]
[320728059,1711539062116,-500.0,0.00055068,120]
[320728060,1711539062125,-842.7,0.00055068,120]
[320728061,1711539062135,-713.05,0.00055068,120]
[320728062,1711539062145,-2308.15,0.00055068,120]
[320728063,1711539062156,-500.0,0.00055068,120]
[320728064,1711539062165,-500.0,0.00055068,120]
[320728065,1711539062174,-500.0,0.00055068,120]
[320728066,1711539062185,-500.0,0.00055068,120]
[320728067,1711539062194,-500.0,0.00055068,120]
[320728068,1711539062204,-500.0,0.00055068,120]
[320728069,1711539062213,-676.12,0.00055068,120]
[320728070,1711539062223,-500.0,0.00055068,120]
[320728071,1711539062236,-504.09997288,0.00055068,120]
[320728072,1711539062249,-500.0,0.00055068,120]
[320728073,1711539062260,-849.59,0.00055068,120]
[320728074,1711539062269,-500.0,0.00055068,120]
[320728075,1711539062278,-500.0,0.00055068,120]
[320728076,1711539062289,-677.22,0.00055068,120]
[320728077,1711539062298,-500.0,0.00055068,120]
[320728078,1711539062308,-500.0,0.00055068,120]
[320728079,1711539062318,-500.0,0.00055068,120]
[320728080,1711539062330,-500.0,0.00055068,120]
[320728081,1711539062340,-500.0,0.00055068,120]
[320728082,1711539062349,-800.48,0.00055068,120]
[320728083,1711539062359,-988.02,0.00055068,120]
[320728084,1711539062369,-500.0,0.00055068,120]
[320728085,1711539062382,-535.04,0.00055068,120]
[320728086,1711539062393,-930.48,0.00055068,120]